[Event "Athens of East Open 2019"]
[Site "Madurai"]
[Date "2019.08.12"]
[Round "8.2"]
[White "Hiridik Rajendran"]
[Black "Adithya Ramesh"]
[Result "1/2-1/2"]
[ECO "B50"]
[WhiteElo "1565"]
[BlackElo "1579"]
[Annotator "NA"]
[PlyCount "129"]
[EventDate "2019.08.10"]
[EventType "swiss"]
[EventCountry "IND"]
[SourceTitle "playchess.com"]
[Source "ChessBase"]
[SourceQuality "1"]
[TimeControl "3600+30"]

1. e4 {[%emt 0:00:00]} c5 {[%emt 0:00:00]} 2. Nf3 {[%emt 0:00:00]} d6 {[%emt 0:00:00]} 3. Be2 {[%emt 0:00:48]} Nf6 {[%emt 0:00:24]} 4. d3 {[%emt 0:00:09]} g6 {[%emt 0:00:18]} 5. O-O {[%emt 0:00:10]} Bg7 {[%emt 0:00:03]} 6. c3 {[%emt 0:00:52]} O-O {[%emt 0:00:11]} 7. h3 {[%emt 0:00:17]} Nc6 {[%emt 0:00:09]} 8. Be3 {[%emt 0:00:10]} a6 {[%emt 0:00:20]} 9. a4 {[%emt 0:00:20]} Rb8 {[%emt 0:00:16]} 10. Nbd2 {[%emt 0:00:35]} e5 {[%emt 0:03:09]} 11. d4 {[%emt 0:03:18]} cxd4 {[%emt 0:02:03]} 12. cxd4 {[%emt 0:00:11]} d5 13. Nxe5 {[%emt 0:19:14]} Nxe5 {[%emt 0:02:47]} 14. dxe5 {[%emt 0:00:43]} Nxe4 {[%emt 0:00:06]} 15. Bd4 {[%emt 0:00:19]} Qe7 {[%emt 0:01:41]} 16. f4 {[%emt 0:00:55]} Ng3 {[%emt 0:02:17]} 17. Rf3 {[%emt 0:03:33]} Nxe2+ {[%emt 0:00:34]} 18. Qxe2 {[%emt 0:00:16]} Bd7 {[%emt 0:02:35]} 19. Qf2 {[%emt 0:01:14]} Rfc8 {[%emt 0:00:47]} 20. Nb3 {[%emt 0:06:23]} Bf8 {[%emt 0:00:55]} 21. Rc3 {[%emt 0:05:01]} Rxc3 {[%emt 0:01:29]} 22. Bxc3 {[%emt 0:01:03]} Rc8 {[%emt 0:02:57]} 23. a5 {[%emt 0:00:25]} Qe8 {[%emt 0:02:21]} 24. Kh1 {[%emt 0:03:08]} Rc4 {[%emt 0:01:28]} 25. Nd2 {[%emt 0:00:55]} Rc8 {[%emt 0:01:54]} 26. Re1 {[%emt 0:00:58]} Bc5 {[%emt 0:00:35]} 27. Bd4 {[%emt 0:00:45]} Bxd4 {[%emt 0:00:54]} 28. Qxd4 {[%emt 0:00:09]} Be6 {[%emt 0:00:13]} 29. Re3 {[%emt 0:05:18]} Qb5 {[%emt 0:00:57]} 30. b4 {[%emt 0:00:11]} Qc6 {[%emt 0:03:02]} 31. Nf3 {[%emt 0:03:44]} Qc4 {[%emt 0:00:28]} 32. Rd3 {[%emt 0:00:18]} Qxd4 {[%emt 0:01:56]} 33. Rxd4 {[%emt 0:00:10]} Rc1+ {[%emt 0:00:11]} 34. Kh2 {[%emt 0:00:27]} Kf8 {[%emt 0:01:25]} 35. Nd2 {[%emt 0:01:51]} Ke7 {[%emt 0:02:30]} 36. g4 {[%emt 0:05:12]} Rc3 {[%emt 0:00:55]} 37. Kg2 {[%emt 0:02:19]} Kd7 {[%emt 0:01:08]} 38. Ne4 {[%emt 0:02:40]} Rc2+ {[%emt 0:00:43]} 39. Kg3 {[%emt 0:00:15]} Kc6 {[%emt 0:00:41]} 40. Nd6 {[%emt 0:00:08]} Rc3+ {[%emt 0:01:07]} 41. Kg2 {[%emt 0:00:36]} f6 {[%emt 0:00:49]} 42. Ne8 {[%emt 0:03:04]} fxe5 {[%emt 0:00:51]} 43. fxe5 {[%emt 0:00:07]} Rc4 {[%emt 0:03:04]} 44. Rd2 {[%emt 0:00:16]} Rxb4 {[%emt 0:00:55]} 45. Rf2 {[%emt 0:00:32]} Re4 {[%emt 0:01:11]} 46. Rc2+ {[%emt 0:00:16]} Rc4 {[%emt 0:00:13]} 47. Rb2 {[%emt 0:00:16]} d4 {[%emt 0:03:22]} 48. Nf6 {[%emt 0:00:51]} Bd5+ {[%emt 0:01:09]} 49. Nxd5 {[%emt 0:01:17]} Kxd5 {[%emt 0:00:09]} 50. Rxb7 {[%emt 0:00:09]} Kxe5 {[%emt 0:00:29]} 51. Rb6 {[%emt 0:00:08]} d3 {[%emt 0:00:42]} 52. Kf2 {[%emt 0:00:15]} Kd4 {[%emt 0:00:54]} 53. Rd6+ {[%emt 0:01:15]} Kc5 {[%emt 0:03:16]} 54. Rxa6 {[%emt 0:00:22]} d2 {[%emt 0:00:22]} 55. Ke2 {[%emt 0:00:13]} Rd4 {[%emt 0:00:04]} 56. Kd1 {[%emt 0:00:04]} Kb5 {[%emt 0:00:27]} 57. Rf6 {[%emt 0:00:19]} Kxa5 {[%emt 0:00:46]} 58. Rf2 {[%emt 0:00:14]} Rd3 {[%emt 0:00:38]} 59. Rxd2 {[%emt 0:01:19]} Rxh3 {[%emt 0:00:06]} 60. Ke1 {[%emt 0:00:33]} Rh1+ {[%emt 0:02:01]} 61. Ke2 {[%emt 0:00:12]} Rh2+ {[%emt 0:00:56]} 62. Ke3 {[%emt 0:00:02]} Rxd2 {[%emt 0:00:05]} 63. Kxd2 {[%emt 0:00:12]} Kb4 {[%emt 0:00:03]} 64. Ke3 {[%emt 0:00:03]} Kc3 {[%emt 0:00:13]} 65. g5 {[%emt 0:02:11]} 1/2-1/2

[Event "Athens of East Open 2019"]
[Site "Madurai"]
[Date "2019.08.12"]
[Round "8.3"]
[White "Sasikumar, Anusweud"]
[Black "Abishek A"]
[Result "1/2-1/2"]
[ECO "A46"]
[WhiteElo "1886"]
[BlackElo "1693"]
[Annotator "NA"]
[PlyCount "97"]
[EventDate "2019.08.10"]
[EventType "swiss"]
[EventCountry "IND"]
[SourceTitle "playchess.com"]
[Source "ChessBase"]
[SourceQuality "1"]
[TimeControl "3600+30"]

1. d4 {[%emt 0:00:00]} Nf6 {[%emt 0:00:00]} 2. Nf3 {[%emt 0:00:00]} d5 3. g3 {[%emt 0:00:00]} e6 {[%emt 0:01:12]} 4. Bg2 c5 {[%emt 0:01:13]} 5. c3 {[%emt 0:01:15]} Nbd7 {[%emt 0:00:20]} 6. O-O {[%emt 0:00:19]} Be7 7. Bf4 O-O {[%emt 0:03:24]} 8. Nbd2 {[%emt 0:02:11]} b6 9. Ne5 {[%emt 0:02:27]} Nxe5 {[%emt 0:04:08]} 10. Bxe5 {[%emt 0:02:11]} Bb7 {[%emt 0:03:32]} 11. h3 {[%emt 0:00:47]} Nd7 {[%emt 0:15:23]} 12. Bf4 Bg5 13. Bxg5 {[%emt 0:04:23]} Qxg5 {[%emt 0:00:33]} 14. Nf3 {[%emt 0:00:19]} Qe7 {[%emt 0:01:21]} 15. e3 {[%emt 0:04:09]} Rfd8 {[%emt 0:04:07]} 16. Qe2 {[%emt 0:00:24]} f6 17. h4 {[%emt 0:03:12]} e5 {[%emt 0:02:01]} 18. Rfe1 {[%emt 0:02:38]} exd4 {[%emt 0:02:35]} 19. exd4 {[%emt 0:00:28]} Qxe2 {[%emt 0:01:23]} 20. Rxe2 {[%emt 0:00:16]} Re8 {[%emt 0:00:11]} 21. Rae1 Kf7 {[%emt 0:00:32]} 22. Bh3 {[%emt 0:00:57]} Nf8 {[%emt 0:02:37]} 23. h5 {[%emt 0:03:32]} Rxe2 24. Rxe2 {[%emt 0:01:02]} g6 {[%emt 0:01:18]} 25. hxg6+ hxg6 26. Nh4 {[%emt 0:07:37]} Bc8 {[%emt 0:07:09]} 27. Bg2 {[%emt 0:01:01]} Be6 {[%emt 0:00:29]} 28. dxc5 {[%emt 0:02:52]} bxc5 {[%emt 0:00:09]} 29. c4 {[%emt 0:00:09]} Rd8 {[%emt 0:00:18]} 30. cxd5 {[%emt 0:01:46]} Bxd5 {[%emt 0:00:14]} 31. Rd2 {[%emt 0:07:14]} Ke6 {[%emt 0:03:10]} 32. Bh3+ {[%emt 0:00:32]} Kd6 {[%emt 0:00:27]} 33. Ng2 {[%emt 0:04:02]} Kc7 {[%emt 0:04:53]} 34. b3 Bf7 {[%emt 0:00:01]} 35. Rxd8 {[%emt 0:01:22]} Kxd8 {[%emt 0:01:17]} 36. Ne3 {[%emt 0:00:25]} Kc7 37. Ng4 Be6 {[%emt 0:04:06]} 38. f4 {[%emt 0:01:58]} Bxg4 {[%emt 0:06:42]} 39. Bxg4 f5 40. Be2 {[%emt 0:00:30]} Nh7 {[%emt 0:02:16]} 41. Bc4 {[%emt 0:00:35]} g5 {[%emt 0:01:11]} 42. Bd3 {[%emt 0:00:17]} gxf4 {[%emt 0:00:29]} 43. Bxf5 Nf6 44. gxf4 {[%emt 0:01:40]} Nd5 {[%emt 0:00:39]} 45. Kf2 {[%emt 0:01:11]} Nxf4 46. Ke3 {[%emt 0:01:08]} Nd5+ {[%emt 0:00:32]} 47. Kd3 {[%emt 0:02:43]} Kb6 {[%emt 0:01:18]} 48. a3 {[%emt 0:00:27]} Nc7 {[%emt 0:00:24]} 49. Bd7 1/2-1/2

[Event "Athens of East Open 2019"]
[Site "Madurai"]
[Date "2019.08.12"]
[Round "8.4"]
[White "Tiwari Shivansh"]
[Black "Gyana Sai Santhosh M"]
[Result "1-0"]
[ECO "D00"]
[WhiteElo "1593"]
[BlackElo "1369"]
[Annotator "NA"]
[PlyCount "55"]
[EventDate "2019.08.10"]
[EventType "swiss"]
[EventCountry "IND"]
[SourceTitle "playchess.com"]
[Source "ChessBase"]
[SourceQuality "1"]
[TimeControl "3600+30"]

1. d4 {[%emt 0:00:00]} d5 {[%emt 0:00:00]} 2. Bf4 {[%emt 0:00:00]} Nf6 {[%emt 0:00:15]} 3. e3 {[%emt 0:00:02]} e6 {[%emt 0:00:32]} 4. Nf3 {[%emt 0:00:11]} c5 {[%emt 0:00:21]} 5. c3 {[%emt 0:00:07]} Nc6 {[%emt 0:00:10]} 6. Nbd2 {[%emt 0:00:11]} Bd6 {[%emt 0:00:47]} 7. Bg3 {[%emt 0:00:13]} O-O {[%emt 0:01:01]} 8. Bd3 {[%emt 0:00:12]} Re8 {[%emt 0:02:39]} 9. Ne5 {[%emt 0:00:57]} Bxe5 {[%emt 0:00:51]} 10. dxe5 {[%emt 0:02:26]} Nd7 {[%emt 0:00:33]} 11. f4 {[%emt 0:01:23]} c4 {[%emt 0:01:27]} 12. Bc2 {[%emt 0:01:38]} Qb6 13. Bf2 Qxb2 {[%emt 0:02:47]} 14. Rc1 {[%emt 0:10:08]} Qa3 15. Bb1 {[%emt 0:00:29]} Qe7 {[%emt 0:06:42]} 16. Qh5 g6 {[%emt 0:03:26]} 17. Qf3 {[%emt 0:07:13]} f5 {[%emt 0:03:36]} 18. h4 {[%emt 0:01:34]} h5 {[%emt 0:00:20]} 19. Qg3 {[%emt 0:02:17]} Qg7 {[%emt 0:02:38]} 20. Qg5 {[%emt 0:00:53]} Nd8 {[%emt 0:01:31]} 21. O-O {[%emt 0:01:05]} Nf7 {[%emt 0:01:36]} 22. Qg3 {[%emt 0:00:14]} b5 {[%emt 0:01:38]} 23. e4 {[%emt 0:04:33]} fxe4 {[%emt 0:01:32]} 24. Nxe4 {[%emt 0:01:57]} dxe4 {[%emt 0:02:25]} 25. Bxe4 {[%emt 0:00:06]} Ba6 {[%emt 0:02:14]} 26. Bxa8 {[%emt 0:00:25]} Rxa8 {[%emt 0:00:02]} 27. Qf3 {[%emt 0:00:20]} Nb6 {[%emt 0:01:56]} 28. Bxb6 1-0

[Event "Athens of East Open 2019"]
[Site "Madurai"]
[Date "2019.08.12"]
[Round "8.5"]
[White "Siddik Akbar"]
[Black "Ravi Chopra"]
[Result "0-1"]
[ECO "B35"]
[WhiteElo "1395"]
[BlackElo "1634"]
[Annotator "NA"]
[PlyCount "25"]
[EventDate "2019.08.10"]
[EventType "swiss"]
[EventCountry "IND"]
[SourceTitle "playchess.com"]
[Source "ChessBase"]
[SourceQuality "1"]
[TimeControl "3600+30"]

1. e4 c5 2. Nf3 Nc6 3. d4 cxd4 4. Nxd4 Nf6 5. Nc3 g6 6. Be3 Bg7 7. Bc4 {[%emt 0:02:51]} O-O 8. Bb3 e6 {[%emt 0:08:42]} 9. Ndb5 {[%emt 0:05:02]} d5 {[%emt 0:01:15]} 10. Bc5 {[%emt 0:06:50]} Ne7 {[%emt 0:08:26]} 11. O-O {[%emt 0:05:03]} Bd7 {[%emt 0:06:34]} 12. e5 {[%emt 0:03:00]} Ne8 13. f4 0-1

[Event "Athens of East Open 2019"]
[Site "Madurai"]
[Date "2019.08.12"]
[Round "9.1"]
[White "Tiwari Shivansh"]
[Black "Rajat Yadav"]
[Result "1/2-1/2"]
[ECO "A45"]
[WhiteElo "1593"]
[BlackElo "1455"]
[Annotator "NA RC"]
[PlyCount "120"]
[EventDate "2019.08.10"]
[EventType "swiss"]
[EventCountry "IND"]
[SourceTitle "playchess.com"]
[Source "ChessBase"]
[SourceQuality "1"]
[TimeControl "3600+30"]

1. d4 {[%emt 0:00:00]} Nf6 {[%emt 0:00:00]} 2. Bf4 {[%emt 0:00:00]} d5 {[%emt 0:00:19]} 3. e3 {[%emt 0:00:00]} e6 4. Nf3 {[%emt 0:00:10]} c5 {[%emt 0:00:35]} 5. c3 {[%emt 0:00:07]} Nc6 {[%emt 0:00:12]} 6. Nbd2 {[%emt 0:00:12]} Be7 {[%emt 0:00:47]} 7. Ne5 {[%emt 0:00:20]} O-O {[%emt 0:00:45]} 8. Bd3 Nd7 {[%emt 0:04:27]} 9. h4 {[%emt 0:05:39]} cxd4 {[%emt 0:05:38]} 10. exd4 Ndxe5 {[%emt 0:06:59]} 11. dxe5 {[%emt 0:00:45]} f5 {[%emt 0:04:58]} 12. exf6 Bxf6 {[%emt 0:02:33]} 13. Qc2 {[%emt 0:21:27]} h6 14. Bg3 {[%emt 0:01:39]} e5 {[%emt 0:01:00]} 15. O-O-O {[%emt 0:02:12]} e4 {[%emt 0:02:29]} 16. Bb5 Qa5 17. Qb3 {[%emt 0:09:15]} Kh8 {[%emt 0:04:41]} 18. Qxd5 {[%emt 0:02:49]} Ne7 {[%emt 0:07:51]} 19. Qb3 a6 {[%emt 0:01:30]} 20. Be2 {[%emt 0:01:47]} Bf5 21. Nc4 {[%emt 0:02:21]} Qc5 {[%emt 0:02:24]} 22. Ne3 Bh7 {[%emt 0:06:30]} 23. Qc4 {[%emt 0:04:56]} Qa5 24. Qb3 {[%emt 0:05:58]} b5 {[%emt 0:02:52]} 25. Bd6 {[%emt 0:04:27]} Rfc8 {[%emt 0:03:04]} 26. Kb1 {[%emt 0:01:15]} Nc6 {[%emt 0:01:18]} 27. Bg4 {[%emt 0:00:31]} Bg8 {[%emt 0:05:49]} 28. Qa3 {[%emt 0:00:39]} Qxa3 {[%emt 0:00:56]} 29. Bxa3 {[%emt 0:00:08]} Rd8 30. Bf5 Bh7 {[%emt 0:01:59]} 31. Bxh7 {[%emt 0:01:19]} Kxh7 {[%emt 0:01:28]} 32. Kc2 {[%emt 0:03:06]} Ne5 33. Nd5 Nd3 {[%emt 0:02:08]} 34. Nxf6+ {[%emt 0:00:40]} gxf6 {[%emt 0:00:01]} 35. Rd2 {[%emt 0:02:12]} f5 {[%emt 0:01:37]} 36. g3 a5 37. Be7 {[%emt 0:01:05]} Re8 {[%emt 0:00:46]} 38. Bf6 b4 {[%emt 0:00:09]} 39. Bd4 {[%emt 0:00:43]} a4 40. cxb4 {[%emt 0:00:37]} Nxb4+ {[%emt 0:00:51]} 41. Kb1 {[%emt 0:01:00]} Nd3 {[%emt 0:00:35]} 42. Rc2 Rac8 {[%emt 0:00:01]} 43. Rxc8 {[%emt 0:01:19]} Rxc8 {[%emt 0:00:20]} 44. a3 {[%emt 0:01:11]} Kg6 {[%emt 0:00:27]} 45. Rd1 {[%emt 0:00:17]} Rc4 {[%emt 0:01:47]} 46. Be3 f4 {[%emt 0:00:05]} 47. gxf4 {[%emt 0:01:45]} Kf5 {[%emt 0:00:43]} 48. f3 Nxf4 49. Bxf4 {[%emt 0:01:34]} Kxf4 {[%emt 0:00:33]} 50. fxe4 {[%emt 0:00:00]} Rxe4 {[%emt 0:00:00]} 51. Rd6 {[%emt 0:00:37]} h5 {[%emt 0:00:24]} 52. Rb6 {[%emt 0:00:14]} Kg3 53. Rb4 Rxh4 {[%emt 0:01:50]} 54. Rxh4 {[%emt 0:01:43]} Kxh4 {[%emt 0:00:03]} 55. b4 {[%emt 0:00:07]} Kg4 {[%emt 0:00:39]} 56. b5 h4 {[%emt 0:00:06]} 57. b6 {[%emt 0:00:34]} h3 {[%emt 0:00:04]} 58. b7 {[%emt 0:00:12]} h2 {[%emt 0:00:04]} 59. b8=Q {[%emt 0:00:07]} h1=Q+ 60. Kc2 Qg2+ 1/2-1/2

[Event "Athens of East Open 2019"]
[Site "Madurai"]
[Date "2019.08.12"]
[Round "9.2"]
[White "Ravi Chopra"]
[Black "Hiridik Rajendran"]
[Result "1-0"]
[ECO "B38"]
[WhiteElo "1634"]
[BlackElo "1565"]
[Annotator "NA RC"]
[PlyCount "131"]
[EventDate "2019.08.10"]
[EventType "swiss"]
[EventCountry "IND"]
[SourceTitle "playchess.com"]
[Source "ChessBase"]
[SourceQuality "1"]
[TimeControl "3600+30"]

1. e4 {[%emt 0:00:00]} c5 {[%emt 0:00:00]} 2. Nf3 {[%emt 0:00:00]} Nc6 {[%emt 0:00:00]} 3. d4 {[%emt 0:00:00]} cxd4 {[%emt 0:00:00]} 4. Nxd4 {[%emt 0:00:04]} g6 5. c4 {[%emt 0:01:20]} Bg7 {[%emt 0:00:35]} 6. Be3 {[%emt 0:00:36]} Nf6 {[%emt 0:00:10]} 7. Nc3 {[%emt 0:00:15]} O-O {[%emt 0:00:12]} 8. Be2 {[%emt 0:01:31]} a6 {[%emt 0:00:18]} 9. O-O {[%emt 0:01:40]} d6 {[%emt 0:01:04]} 10. f4 {[%emt 0:08:04]} e6 {[%emt 0:08:52]} 11. Qd2 {[%emt 0:02:47]} Qc7 {[%emt 0:14:11]} 12. Rad1 {[%emt 0:04:49]} Rd8 {[%emt 0:01:25]} 13. Nxc6 {[%emt 0:07:32]} Qxc6 {[%emt 0:01:18]} 14. e5 {[%emt 0:03:48]} Ne8 {[%emt 0:00:48]} 15. c5 {[%emt 0:01:11]} d5 {[%emt 0:00:35]} 16. Bd4 {[%emt 0:00:51]} Bd7 {[%emt 0:01:00]} 17. b3 {[%emt 0:02:02]} Qc7 {[%emt 0:00:11]} 18. Na4 {[%emt 0:00:54]} Bxa4 {[%emt 0:03:48]} 19. bxa4 {[%emt 0:00:16]} Bf8 {[%emt 0:00:10]} 20. Rc1 {[%emt 0:01:33]} Rdc8 {[%emt 0:01:05]} 21. g4 {[%emt 0:03:17]} Qd7 {[%emt 0:08:39]} 22. Qc2 {[%emt 0:08:24]} Rc6 {[%emt 0:02:04]} 23. Rf3 {[%emt 0:14:26]} Rac8 {[%emt 0:01:34]} 24. Rc3 {[%emt 0:02:18]} Qd8 {[%emt 0:03:46]} 25. Qb2 {[%emt 0:01:07]} R8c7 {[%emt 0:01:27]} 26. Kg2 {[%emt 0:00:12]} Qc8 {[%emt 0:00:08]} 27. Bb5 axb5 {[%emt 0:06:57]} 28. axb5 {[%emt 0:02:02]} Rxc5 {[%emt 0:00:13]} 29. Bxc5 {[%emt 0:00:13]} Bxc5 {[%emt 0:00:21]} 30. Qc2 {[%emt 0:01:24]} b6 {[%emt 0:00:10]} 31. Qe2 {[%emt 0:01:41]} Qa8 {[%emt 0:00:20]} 32. Rf3 {[%emt 0:00:38]} Ra7 {[%emt 0:00:09]} 33. Rc2 {[%emt 0:00:02]} d4 {[%emt 0:00:36]} 34. Kg3 {[%emt 0:00:21]} Ra3 {[%emt 0:00:02]} 35. Rxa3 {[%emt 0:01:17]} Qxa3+ {[%emt 0:00:08]} 36. Qf3 {[%emt 0:00:11]} Qxf3+ {[%emt 0:00:39]} 37. Kxf3 {[%emt 0:00:05]} Nc7 {[%emt 0:01:09]} 38. a4 {[%emt 0:00:02]} Kf8 {[%emt 0:00:17]} 39. a5 Ke7 {[%emt 0:04:10]} 40. axb6 {[%emt 0:01:27]} Bxb6 {[%emt 0:00:17]} 41. Rc6 {[%emt 0:00:01]} Nd5 {[%emt 0:00:21]} 42. Ke4 {[%emt 0:01:27]} Kd7 {[%emt 0:00:18]} 43. f5 {[%emt 0:00:29]} gxf5+ {[%emt 0:00:41]} 44. gxf5 {[%emt 0:00:02]} Ba7 {[%emt 0:01:37]} 45. Rd6+ {[%emt 0:00:49]} Ke7 {[%emt 0:00:21]} 46. Ra6 {[%emt 0:00:25]} Bb6 {[%emt 0:00:39]} 47. f6+ {[%emt 0:00:04]} Kd7 {[%emt 0:02:22]} 48. Ra8 {[%emt 0:01:27]} Nc3+ {[%emt 0:07:33]} 49. Kd3 {[%emt 0:00:02]} Nxb5 {[%emt 0:00:09]} 50. Rf8 {[%emt 0:00:07]} Kc6 {[%emt 0:00:14]} 51. Rxf7 {[%emt 0:00:05]} Bc5 {[%emt 0:01:52]} 52. Rxh7 {[%emt 0:00:22]} Kd5 {[%emt 0:00:20]} 53. f7 {[%emt 0:00:01]} Be7 {[%emt 0:00:38]} 54. Rh8 {[%emt 0:00:20]} Kxe5 {[%emt 0:00:07]} 55. Rh5+ {[%emt 0:00:48]} Kf6 {[%emt 0:00:18]} 56. Rxb5 {[%emt 0:00:19]} Kxf7 {[%emt 0:00:12]} 57. Kxd4 {[%emt 0:00:05]} Bf6+ {[%emt 0:00:44]} 58. Ke4 {[%emt 0:00:01]} Kg6 {[%emt 0:00:37]} 59. Kf3 {[%emt 0:00:24]} Kf7 {[%emt 0:00:20]} 60. Kg4 {[%emt 0:00:06]} Be7 {[%emt 0:00:09]} 61. h4 {[%emt 0:00:17]} Bf6 {[%emt 0:00:11]} 62. h5 {[%emt 0:02:54]} Bg7 {[%emt 0:00:07]} 63. Kg5 {[%emt 0:00:17]} Bf6+ {[%emt 0:02:13]} 64. Kh6 {[%emt 0:00:01]} e5 {[%emt 0:00:18]} 65. Rb7+ {[%emt 0:00:03]} Ke6 {[%emt 0:00:09]} 66. Kg6 {[%emt 0:00:03]} 1-0

[Event "Athens of East Open 2019"]
[Site "Madurai"]
[Date "2019.08.12"]
[Round "9.3"]
[White "Adithya Ramesh"]
[Black "Sasikumar, Anusweud"]
[Result "1-0"]
[ECO "B00"]
[WhiteElo "1579"]
[BlackElo "1886"]
[Annotator "NA RC"]
[PlyCount "59"]
[EventDate "2019.08.10"]
[EventType "swiss"]
[EventCountry "IND"]
[SourceTitle "playchess.com"]
[Source "ChessBase"]
[SourceQuality "1"]
[TimeControl "3600+30"]

{[%evp 8,39,56,10,26,27,14,7,4,15,42,12,15,16,32,9,11,-5,32767,99,32767,32767,32767,32767,406,420,32767,423,430,433,424,379,364,383]} 1. e4 {[%emt 0:00:00]} Nc6 2. Nf3 g6 {[%emt 0:01:28]} 3. d4 {[%emt 0:00:40]} Bg7 {[%emt 0:00:35]} 4. c4 {[%emt 0:00:34]} d6 {[%emt 0:01:37]} 5. h3 {[%emt 0:00:51]} (5. d5 Ne5 6. Nxe5 Bxe5 7. Nc3 Bg7 8. Bd3 e5 9. Be3 Nf6 10. f3 Nd7 11. Qd2 a5 12. g4 Nc5 13. O-O-O Nxd3+ 14. Qxd3 b6 15. h4 h5 {0-1 (43) Parligras,M (2645)-Istratescu,A (2565) Bucharest 2018}) 5... e5 {[%emt 0:01:44]} 6. dxe5 {[%emt 0:01:15] A40: Unusual replies to 1 d4} dxe5 {[%emt 0:02:03]} 7. Qxd8+ {[%emt 0:00:17]} Nxd8 {[%emt 0:01:07]} 8. Nc3 {[%emt 0:00:17]} c6 {[%emt 0:00:29]} 9. Be3 {[%emt 0:00:12]} Ne7 $146 {[%emt 0:03:01]} ({Predecessor:} 9... Ne6 10. O-O-O Ne7 11. g4 O-O 12. g5 b6 13. h4 Rd8 14. Rxd8+ Nxd8 15. Bh3 Bxh3 16. Rxh3 {½-½ (23) Balhar,M (1642)-Hofmann,B (1732) Germany 2005}) 10. O-O-O {[%emt 0:00:22]} f5 {[%emt 0:04:36]} 11. Bc5 {[%emt 0:02:25]} b6 {[%emt 0:01:02]} 12. Ba3 {[%emt 0:03:18]} Ne6 {[%emt 0:03:44]} 13. Bd6 {[%emt 0:01:56]} fxe4 {[%emt 0:09:58]} 14. Nxe5 {[%emt 0:01:27]} Nf5 {[%emt 0:05:28]} 15. Nxe4 {[%emt 0:03:35]} Bxe5 $4 {[%emt 0:05:15]} (15... c5 $16) 16. Bxe5 {[%emt 0:00:10]} O-O {[%emt 0:00:52]} 17. Nf6+ {[%emt 0:01:55]} Kf7 {[%emt 0:00:36]} 18. Nxh7 {[%emt 0:02:08]} Re8 $18 {[%emt 0:00:32]} 19. Nf6 {[%emt 0:00:27]} Re7 {[%emt 0:00:25]} 20. Ne4 {[%emt 0:01:12]} c5 {[%emt 0:00:53]} 21. g4 {[%emt 0:01:24]} Nfd4 {[%emt 0:00:20]} 22. Nd6+ {[%emt 0:01:44]} Kg8 {[%emt 0:00:57]} 23. Bg2 {[%emt 0:00:41]} Rb8 {[%emt 0:02:13]} 24. Nf5 {[%emt 0:02:08]} gxf5 {[%emt 0:02:03]} 25. Bxb8 {[%emt 0:00:33]} f4 {[%emt 0:00:52]} 26. Bd5 {[%emt 0:00:13]} Bb7 {[%emt 0:00:45]} 27. Rhe1 {[%emt 0:01:23]} Bc8 {[%emt 0:00:37]} 28. Bxf4 {[%emt 0:01:00]} Kg7 {[%emt 0:00:10]} 29. Be5+ {[%emt 0:00:05]} Kg6 {[%emt 0:00:15]} 30. Bxd4 {[%emt 0:00:09]} 1-0

[Event "Athens of East Open 2019"]
[Site "Madurai"]
[Date "2019.08.12"]
[Round "9.4"]
[White "Ragesh Sarma.M"]
[Black "Shreyas Seshadri Nallore"]
[Result "1-0"]
[ECO "A45"]
[WhiteElo "1583"]
[BlackElo "1396"]
[Annotator "NA RC"]
[PlyCount "99"]
[EventDate "2019.08.10"]
[EventType "swiss"]
[EventCountry "IND"]
[SourceTitle "playchess.com"]
[Source "ChessBase"]
[SourceQuality "1"]
[TimeControl "3600+30"]

1. d4 {[%emt 0:00:00]} Nf6 {[%emt 0:00:00]} 2. Bg5 {[%emt 0:00:00]} e6 {[%emt 0:00:00]} 3. e3 {[%emt 0:00:00]} d5 4. Nf3 {[%emt 0:00:31]} c5 {[%emt 0:00:30]} 5. c3 {[%emt 0:00:09]} Nc6 {[%emt 0:00:32]} 6. Bd3 {[%emt 0:01:36]} Be7 {[%emt 0:00:42]} 7. Nbd2 {[%emt 0:00:24]} Bd7 {[%emt 0:00:58]} 8. O-O {[%emt 0:01:50]} O-O {[%emt 0:00:57]} 9. Rc1 {[%emt 0:06:22]} cxd4 {[%emt 0:01:42]} 10. cxd4 {[%emt 0:04:42]} h6 {[%emt 0:01:14]} 11. Bh4 {[%emt 0:00:39]} Re8 {[%emt 0:06:29]} 12. Bb1 {[%emt 0:11:08]} Nh7 {[%emt 0:16:16]} 13. Bg3 {[%emt 0:09:27]} Rc8 {[%emt 0:02:58]} 14. Qe2 {[%emt 0:02:05]} Bf6 {[%emt 0:05:18]} 15. Nb3 {[%emt 0:00:51]} Nf8 {[%emt 0:05:51]} 16. Nc5 {[%emt 0:01:16]} b6 {[%emt 0:01:15]} 17. Nb7 {[%emt 0:00:17]} Qc7 {[%emt 0:03:29]} 18. Bxc7 {[%emt 0:01:09]} Rxc7 {[%emt 0:00:04]} 19. Nd6 {[%emt 0:00:06]} Rd8 {[%emt 0:00:16]} 20. Nb5 {[%emt 0:00:21]} Rb7 {[%emt 0:00:23]} 21. Nd6 {[%emt 0:01:15]} Rbb8 {[%emt 0:00:31]} 22. e4 {[%emt 0:03:45]} Nxd4 {[%emt 0:02:45]} 23. Nxd4 {[%emt 0:00:51]} Bxd4 {[%emt 0:00:05]} 24. exd5 {[%emt 0:03:01]} exd5 {[%emt 0:00:27]} 25. Nf5 {[%emt 0:00:51]} Bf6 {[%emt 0:00:36]} 26. Ne7+ {[%emt 0:01:53]} Kh8 {[%emt 0:00:40]} 27. Nxd5 {[%emt 0:00:42]} Re8 {[%emt 0:01:17]} 28. Qd2 {[%emt 0:01:28]} Bd8 {[%emt 0:00:44]} 29. Rfe1 {[%emt 0:00:49]} Be6 {[%emt 0:01:38]} 30. Nc7 {[%emt 0:01:54]} Bg5 {[%emt 0:00:29]} 31. f4 {[%emt 0:00:03]} Red8 {[%emt 0:00:08]} 32. Qf2 {[%emt 0:04:21]} Bf6 {[%emt 0:00:42]} 33. Nxe6 Nxe6 {[%emt 0:00:25]} 34. Kh1 {[%emt 0:00:12]} Bd4 {[%emt 0:01:05]} 35. Qc2 {[%emt 0:00:17]} Nf8 {[%emt 0:00:42]} 36. Rcd1 {[%emt 0:01:21]} Rdc8 {[%emt 0:00:23]} 37. Qb3 {[%emt 0:02:21]} Bf2 {[%emt 0:01:08]} 38. Re2 {[%emt 0:00:19]} Bc5 {[%emt 0:00:28]} 39. Qxf7 {[%emt 0:00:18]} Rd8 {[%emt 0:00:28]} 40. Rxd8 {[%emt 0:01:10]} Rxd8 {[%emt 0:00:13]} 41. Bc2 {[%emt 0:00:09]} Rd7 {[%emt 0:00:23]} 42. Qf5 {[%emt 0:00:26]} g6 {[%emt 0:00:25]} 43. Qf6+ {[%emt 0:00:16]} Kh7 {[%emt 0:00:12]} 44. g3 {[%emt 0:00:20]} Rg7 {[%emt 0:00:28]} 45. f5 {[%emt 0:00:36]} gxf5 {[%emt 0:01:11]} 46. Bxf5+ {[%emt 0:00:35]} Ng6 {[%emt 0:00:54]} 47. Re8 {[%emt 0:00:05]} Bf8 {[%emt 0:00:58]} 48. Rxf8 {[%emt 0:00:06]} a6 {[%emt 0:00:11]} 49. Bxg6+ {[%emt 0:00:05]} Rxg6 {[%emt 0:00:03]} 50. Qh8# {[%emt 0:00:04]} 1-0